bitfinex-derivatives/quotes_BTCF0:USTF0_20260315
["timestamp","ask_amount","ask_price","bid_price","bid_amount"]
[1773606895493,0.0014,71695.0,71678.0,0.01930653]
[1773606896699,0.01891941,71701.0,71675.0,0.0014]
[1773606896700,0.0014,71697.0,71683.0,0.06115053]
[1773606896905,0.0014,71697.0,71684.0,0.01930653]
[1773606897103,0.041833,71702.0,71684.0,0.01930653]
[1773606897304,0.0014,71701.0,71684.0,0.01930653]
[1773606897502,0.01831964,71706.0,71684.0,0.01930653]
[1773606897702,0.0014,71706.0,71690.0,0.04184]
[1773606897906,0.0014,71706.0,71687.0,0.01930653]
[1773606898090,0.08763043,71700.0,71687.0,0.01930653]
[1773606898800,0.041832,71705.0,71686.0,0.043242]
[1773606899004,0.06015164,71705.0,71687.0,0.041842]
[1773606900103,0.0014,71706.0,71688.0,0.01930653]
[1773606900298,0.0014,71705.0,71691.0,0.041839]
[1773606900597,0.0014,71704.0,71690.0,0.04184]
[1773606900804,0.0014,71705.0,71695.0,0.041837]
[1773606900999,0.01831964,71712.0,71693.0,0.06114453]
[1773606901204,0.0014,71706.0,71693.0,0.06114453]
[1773606905708,0.0014,71706.0,71693.0,0.01930653]
[1773606905909,0.041829,71709.0,71693.0,0.01930653]
[1773606906112,0.0014,71706.0,71693.0,0.01930653]
[1773606906799,0.0014,71706.0,71688.0,0.01930653]
[1773606907712,0.0014,71706.0,71692.0,0.041839]
[1773606909814,0.0014,71706.0,71688.0,0.06114753]
[1773606910116,0.0014,71706.0,71689.0,0.06114653]
[1773606910414,0.0014,71706.0,71690.0,0.01930653]
[1773606914116,0.01971964,71706.0,71686.0,0.0014]
[1773606914508,0.041832,71705.0,71686.0,0.043242]
[1773606914802,0.041832,71705.0,71686.0,0.041842]
[1773606915012,0.041832,71705.0,71687.0,0.0014]
[1773606915918,0.041832,71705.0,71686.0,0.041842]
[1773606916120,0.041832,71705.0,71687.0,0.0014]
[1773606916915,0.14733699,71714.0,71687.0,0.01930653]
[1773606917215,0.02235803,75489.0,71702.0,0.01930653]
[1773606917216,0.02565964,71724.0,71702.0,0.01930653]
[1773606917419,0.043221,71723.0,71703.0,0.06113853]
[1773606917718,0.0014,71723.0,71703.0,0.02070653]
[1773606918219,0.0014,71723.0,71703.0,0.06253853]
[1773606919010,0.0014,71723.0,71704.0,0.01930653]
[1773606919206,0.0014,71723.0,71703.0,0.0014]
[1773606919207,0.01831964,71719.0,71703.0,0.0014]
[1773606919412,0.06014464,71717.0,71703.0,0.0014]
[1773606919918,0.01831964,71717.0,71703.0,0.0014]
[1773606920318,0.01831964,71717.0,71702.0,0.0014]
[1773606921722,0.01831964,71717.0,71699.0,0.041835]
[1773606921918,0.01831964,71717.0,71700.0,0.0014]
[1773606922922,0.01831964,71717.0,71700.0,0.043234]
[1773606923125,0.01831964,71717.0,71700.0,0.0014]
[1773606924124,0.01831964,71717.0,71700.0,0.043234]
[1773606925422,0.01831964,71717.0,71700.0,0.0014]
[1773606925823,0.08758,71710.0,71691.0,0.01887529]
[1773606926118,0.01847254,71712.0,71692.0,0.02027529]
[1773606926312,0.01847254,71712.0,71692.0,0.01887529]
[1773606926527,0.01847254,71712.0,71693.0,0.0014]
[1773606926733,0.01847254,71712.0,71696.0,0.041836]
[1773606928027,0.01847254,71712.0,71696.0,0.042836]
[1773606928431,0.01847254,71712.0,71697.0,0.0014]
[1773606928833,0.01847254,71712.0,71696.0,0.001]
[1773606929033,0.01847254,71712.0,71697.0,0.0014]
[1773606929328,0.01847254,71711.0,71696.0,0.001]
[1773606929540,0.01847254,71711.0,71697.0,0.0014]
[1773606930125,0.01847254,71709.0,71697.0,0.0014]
[1773606930526,0.043228,71712.0,71697.0,0.0014]
[1773606931138,0.0014,71713.0,71697.0,0.02027529]
[1773606931526,0.0014,71713.0,71697.0,0.0024]
[1773606931726,0.043227,71713.0,71697.0,0.0024]
[1773606932342,0.01847254,71711.0,71697.0,0.0024]
[1773606933522,0.01847254,71711.0,71697.0,0.0014]
[1773606934625,0.0014,71713.0,71697.0,0.0014]
[1773606935845,0.043227,71713.0,71697.0,0.0014]
[1773606936343,0.0014,71713.0,71697.0,0.0014]
[1773606936526,1.8e-07,75571.0,71672.0,0.14967863]
[1773606936527,0.08758,71740.0,71706.0,0.01887529]
[1773606936726,0.01847254,71729.0,71707.0,0.01887529]
[1773606936927,0.01847254,71734.0,71711.0,0.01887529]
[1773606937130,0.0014,71735.0,71711.0,0.01887529]
[1773606937543,0.0014,71735.0,71710.0,0.08758]
[1773606937544,0.0014,71735.0,71718.0,0.041823]
[1773606937737,0.001,71733.0,71719.0,0.0014]
[1773606938141,0.001,71733.0,71719.0,0.02027529]
[1773606938340,0.0014,71735.0,71719.0,0.02027529]
[1773606938642,0.0014,71736.0,71720.0,0.041823]
[1773606939438,0.041812,71739.0,71720.0,0.041823]
[1773606939646,0.0014,71738.0,71721.0,0.01887529]
[1773606939938,0.0014,71738.0,71720.0,0.041823]
[1773606939939,0.0014,71742.0,71726.0,0.06069429]
[1773606940142,0.0014,71741.0,71726.0,0.01887529]
[1773606940337,0.0014,71741.0,71721.0,0.01887529]
[1773606940642,0.0014,71741.0,71722.0,0.01887529]
[1773606940843,0.08758,71740.0,71719.0,0.0014]
[1773606941043,0.01847254,71740.0,71721.0,0.041822]
[1773606941340,0.0014,71743.0,71722.0,0.01887529]
[1773606941549,0.04321,71743.0,71724.0,0.04182]
[1773606941934,0.04321,71743.0,71722.0,0.06069629]
[1773606942136,0.04181,71742.0,71722.0,0.06069629]
[1773606942944,0.01847254,71741.0,71719.0,0.0014]
[1773606943242,0.041811,71741.0,71722.0,0.041821]
[1773606943446,0.06028354,71741.0,71722.0,0.041821]
[1773606943644,0.01847254,71739.0,71720.0,0.041822]
[1773606944046,0.01847254,71739.0,71721.0,0.041822]
[1773606946646,0.01847254,71730.0,71715.0,0.0014]
[1773606946947,0.01847254,71730.0,71707.0,0.01887529]
[1773606947149,0.01847254,71730.0,71716.0,0.041824]
[1773606947349,0.041813,71737.0,71719.0,0.041823]
[1773606947653,0.0014,71736.0,71719.0,0.041823]
[1773606947948,0.01987254,71736.0,71716.0,0.0014]
[1773606948148,0.01847254,71730.0,71716.0,0.0014]
[1773606948340,0.01847254,71735.0,71716.0,0.0014]
[1773606948541,0.041816,71732.0,71715.0,0.001]
[1773606948736,0.06028654,71734.0,71716.0,0.0014]
[1773606949054,0.06028654,71734.0,71716.0,0.043225]
[1773606949738,0.041818,71728.0,71715.0,0.001]
[1773606949944,0.01847254,71727.0,71714.0,0.0014]
[1773606950151,0.01847254,71728.0,71700.0,0.16630429]
[1773606950448,0.0014,71729.0,71704.0,0.041832]
[1773606950449,0.01847254,71721.0,71704.0,0.041832]
[1773606950648,0.01987254,71721.0,71704.0,0.041832]
[1773606950852,0.01987254,71721.0,71715.0,0.001]
[1773606951239,0.01987254,71721.0,71706.0,0.0014]
[1773606952152,0.01987254,71721.0,71705.0,0.041831]
[1773606952344,0.0014,71721.0,71705.0,0.0014]
[1773606952549,0.0014,71721.0,71706.0,0.04183]
[1773606953552,0.0014,71721.0,71707.0,0.04183]
[1773606953852,0.0014,71721.0,71705.0,0.043231]
[1773606954954,0.01665457,71720.0,71705.0,0.0014]
[1773606955248,0.01665457,71720.0,71705.0,0.043231]
[1773606956046,0.0014,71721.0,71705.0,0.043231]
[1773606956360,0.041819,71726.0,71709.0,0.041829]
[1773606956853,0.04182,71725.0,71707.0,0.04183]
[1773606957242,0.01805457,71728.0,71706.0,0.0180665]
[1773606957751,0.01805457,71728.0,71705.0,0.043231]
[1773606957945,0.041821,71723.0,71705.0,0.043231]
[1773606958146,0.041821,71723.0,71706.0,0.041831]
[1773606958345,0.041821,71723.0,71707.0,0.04183]
[1773606958855,0.05847557,71723.0,71705.0,0.0014]
[1773606960058,0.05847557,71723.0,71706.0,0.041831]
[1773606960241,0.05847557,71723.0,71705.0,0.0014]
[1773606960242,0.01665457,71717.0,71705.0,0.0014]
[1773606960445,0.01665457,71717.0,71699.0,0.16590108]
[1773606961355,0.01665457,71717.0,71702.0,0.041833]
[1773606961554,0.01665457,71717.0,71699.0,0.16590108]
[1773606961555,0.01665457,71717.0,71700.0,0.043234]
[1773606961851,0.01665457,71714.0,71701.0,0.043233]
[1773606962255,0.01665457,71714.0,71700.0,0.0014]
[1773606962554,0.01665457,71714.0,71700.0,0.043234]
[1773606963750,0.01665457,71714.0,71701.0,0.041833]
[1773606964960,0.01665457,71714.0,71701.0,0.042833]
[1773606965356,0.041823,71719.0,71701.0,0.001]
[1773606965559,0.0014,71718.0,71701.0,0.0024]
[1773606965746,0.0014,71718.0,71704.0,0.041832]
[1773606965950,0.01665457,71718.0,71702.0,0.041833]
[1773606966148,0.01805457,71717.0,71702.0,0.041833]
[1773606967153,0.01665457,71716.0,71701.0,0.0024]
[1773606967860,0.01665457,71716.0,71703.0,0.041832]
[1773606968164,0.01665457,71716.0,71701.0,0.044233]
[1773606968360,0.01665457,71716.0,71701.0,0.043233]
[1773606968559,0.01665457,71716.0,71702.0,0.001]
[1773606968759,0.01665457,71716.0,71702.0,0.042833]
[1773606970364,0.01665457,71716.0,71701.0,0.0024]
[1773606971053,0.01665457,71716.0,71698.0,0.041835]
[1773606971253,0.01665457,71716.0,71702.0,0.001]
[1773606971960,0.01665457,71716.0,71701.0,0.001]
[1773606972162,0.01665457,71716.0,71701.0,0.0204665]
[1773606972163,0.0014,71716.0,71701.0,0.0204665]
[1773606972362,0.0014,71716.0,71701.0,0.0024]
[1773606972665,0.0014,71716.0,71703.0,0.041832]
[1773606972866,0.0014,71716.0,71702.0,0.0014]
[1773606973164,0.23183872,71730.0,71702.0,0.0014]
[1773606973165,0.02399457,71738.0,71721.0,0.041822]
[1773606973466,0.02399457,71738.0,71705.0,0.041831]
[1773606973467,0.041815,71733.0,71720.0,0.08755172]
[1773606974059,0.041815,71733.0,71717.0,0.041824]
[1773606974269,0.0014,71732.0,71716.0,0.0194665]
[1773606976166,0.041816,71731.0,71716.0,0.0014]
[1773606977164,0.041816,71731.0,71716.0,0.043225]
[1773606978257,0.041817,71730.0,71716.0,0.0014]
[1773606978467,0.01665457,71729.0,71716.0,0.043225]
[1773606978666,0.043216,71732.0,71717.0,0.041824]
[1773606979357,0.041816,71732.0,71717.0,0.041824]
[1773606979558,0.0014,71733.0,71718.0,0.041824]
[1773606979754,0.01665457,71741.0,71720.0,0.10561822]
[1773606979958,0.0014,71740.0,71720.0,0.10561822]
[1773606980168,0.041813,71737.0,71722.0,0.041821]
[1773606980569,0.0014,71736.0,71722.0,0.041821]
[1773606980764,0.041813,71737.0,71722.0,0.041821]
[1773606980958,0.01665457,71737.0,71716.0,0.0024]
[1773606981254,0.0014,71736.0,71716.0,0.0024]
[1773606981459,0.0014,71736.0,71716.0,0.0194665]
[1773606981668,0.0014,71736.0,71721.0,0.041822]
[1773606981863,0.0014,71735.0,71722.0,0.041821]
[1773606982265,0.0014,71736.0,71722.0,0.041821]
[1773606982771,0.01683243,71741.0,71720.0,0.10449478]
[1773606982974,0.01683243,71741.0,71723.0,0.04182]
[1773606982975,0.041812,71739.0,71723.0,0.04182]
[1773606983268,0.05864543,71737.0,71721.0,0.041822]
[1773606983572,0.06004543,71737.0,71721.0,0.041822]
[1773606983865,0.05864643,71736.0,71719.0,0.041823]
[1773606984059,0.05864643,71736.0,71720.0,0.041822]
[1773606984469,0.01683243,71736.0,71712.0,0.16590108]
[1773606984663,0.01683243,71735.0,71715.0,0.041825]
[1773606984970,0.01683243,71730.0,71715.0,0.041825]
[1773606985170,0.01823243,71729.0,71715.0,0.041825]
[1773606987073,0.01823243,71729.0,71716.0,0.041825]
[1773606987573,0.0014,71729.0,71711.0,0.01694306]
[1773606987775,0.0014,71728.0,71718.0,0.041823]
[1773606987975,0.0014,71731.0,71718.0,0.041823]
[1773606988964,0.0014,71731.0,71716.0,0.042825]
[1773606989566,0.01823243,71731.0,71716.0,0.001]
[1773606989761,0.041818,71729.0,71716.0,0.001]
[1773606990476,0.041818,71728.0,71716.0,0.001]
[1773606990777,0.041818,71728.0,71718.0,0.001]
[1773606991662,0.041818,71728.0,71716.0,0.001]
[1773606991962,0.01683243,71722.0,71704.0,0.16624539]
[1773606992169,0.041824,71719.0,71705.0,0.0014]
[1773606992361,0.041824,71719.0,71718.0,0.001]
[1773606992569,0.01823243,71721.0,71705.0,0.043231]
[1773606993672,0.01823243,71721.0,71705.0,0.041831]
[1773606993872,0.01823243,71721.0,71705.0,0.043231]
[1773606994074,0.05865543,71720.0,71705.0,0.043231]
[1773606994272,0.01683243,71720.0,71700.0,0.16624539]
[1773606994578,0.01683243,71718.0,71705.0,0.001]
[1773606995080,0.01683243,71718.0,71705.0,0.002]
[1773606995371,0.01683243,71718.0,71704.0,0.041832]
[1773606995572,0.041823,71720.0,71705.0,0.041831]
[1773606995776,0.041823,71720.0,71701.0,0.0014]
[1773606995777,0.0014,71721.0,71706.0,0.04183]
[1773606996563,0.043222,71721.0,71706.0,0.04183]
[1773606996769,0.043222,71721.0,71704.0,0.041831]
[1773606996770,0.05865543,71719.0,71704.0,0.041831]
[1773606997674,0.041823,71719.0,71705.0,0.001]
[1773606997881,0.0014,71721.0,71708.0,0.041829]
[1773606999273,0.0014,71721.0,71706.0,0.04183]
[1773606999582,0.0014,71721.0,71708.0,0.001]
[1773606999778,0.043222,71721.0,71708.0,0.001]
[1773607001281,0.043222,71721.0,71706.0,0.04283]
[1773607001877,0.043222,71721.0,71706.0,0.04183]
[1773607002478,0.01683243,71720.0,71700.0,0.16624539]
[1773607002679,0.05865843,71714.0,71700.0,0.041834]
[1773607003070,0.05865843,71714.0,71700.0,0.043234]
[1773607003283,0.041827,71713.0,71702.0,0.16624539]
[1773607003583,0.05865943,71712.0,71700.0,0.0014]
[1773607003786,0.01683243,71712.0,71699.0,0.20808039]
[1773607003981,0.01683243,71712.0,71699.0,0.16624539]
[1773607004186,0.01683243,71708.0,71695.0,0.16624539]
[1773607004684,0.01683243,71708.0,71696.0,0.0014]
[1773607004885,0.01683243,71708.0,71699.0,0.001]
[1773607005284,0.041829,71709.0,71699.0,0.001]
[1773607005589,0.01683243,71708.0,71696.0,0.0014]
[1773607007884,0.01683243,71708.0,71699.0,0.001]
[1773607008083,0.041828,71711.0,71699.0,0.001]
[1773607008286,0.0014,71710.0,71699.0,0.001]
[1773607008478,0.0014,71710.0,71697.0,0.041836]
[1773607008479,0.01686485,71741.0,71696.0,0.0024]
[1773607008679,0.041814,71735.0,71710.0,0.08755172]
[1773607008890,0.041802,71756.0,71717.0,0.041824]
[1773607008891,0.041815,71733.0,71717.0,0.041824]
[1773607009093,0.0242072,71731.0,71717.0,0.041824]
[1773607009390,0.0242072,71731.0,71718.0,0.041823]
[1773607009985,0.0256072,71731.0,71718.0,0.041823]
[1773607010680,0.0256072,71731.0,71716.0,0.0014]
[1773607010890,0.00734,71731.0,71716.0,0.0014]
[1773607011087,0.01683995,71740.0,71717.0,0.00197339]
[1773607011485,0.0014,71739.0,71717.0,0.00197339]
[1773607011687,0.0014,71739.0,71720.0,0.08940051]
[1773607011886,0.0014,71739.0,71720.0,0.00184879]
[1773607012096,0.01683995,71740.0,71720.0,0.00184879]
[1773607012097,0.01683995,71740.0,71720.0,0.08940051]
[1773607012394,0.0014,71740.0,71729.0,0.041817]
[1773607013384,0.041806,71750.0,71734.0,0.041814]
[1773607013586,0.01708862,71748.0,71732.0,0.041815]
[1773607013888,0.01708862,71746.0,71730.0,0.041817]
[1773607014398,0.05889662,71746.0,71730.0,0.041817]
[1773607014887,0.01708862,71743.0,71728.0,0.041818]
[1773607015990,0.04181,71743.0,71728.0,0.041818]
[1773607016195,0.01848862,71742.0,71728.0,0.041818]
[1773607016685,0.01848862,71742.0,71729.0,0.041817]
[1773607017286,0.0014,71749.0,71730.0,0.0888104]
[1773607017588,0.01848862,71749.0,71730.0,0.00125868]
[1773607018096,0.01848862,71749.0,71726.0,0.00113579]
[1773607018593,0.01848862,71749.0,71737.0,0.041812]
[1773607018801,0.01708862,71749.0,71737.0,0.041812]
[1773607018984,0.041807,71746.0,71730.0,0.041816]
[1773607019186,0.05889562,71746.0,71725.0,0.00287403]
[1773607019695,0.05889562,71746.0,71732.0,0.041815]
[1773607019895,0.01708862,71746.0,71733.0,0.0014]
[1773607020394,0.05889662,71746.0,71733.0,0.0014]
[1773607021184,0.01708862,71746.0,71733.0,0.0014]
[1773607021384,0.0014,71750.0,71727.0,0.0014]
[1773607021385,0.041812,71738.0,71727.0,0.0014]
[1773607021700,0.01708862,71737.0,71727.0,0.0014]
[1773607022496,0.01708862,71737.0,71726.0,0.0014]
[1773607022995,0.05890162,71737.0,71726.0,0.0014]
[1773607023197,0.041813,71737.0,71726.0,0.0014]
[1773607023593,0.01708862,71748.0,71726.0,0.0014]
[1773607023802,0.01848862,71748.0,71727.0,0.08755172]
[1773607024103,0.041809,71744.0,71727.0,0.08755172]
[1773607024393,0.041809,71744.0,71727.0,0.08855172]
[1773607024595,0.041809,71743.0,71727.0,0.001]
[1773607024990,0.041809,71743.0,71726.0,0.0014]
[1773607025701,0.05889762,71743.0,71726.0,0.0014]
[1773607026001,0.05889762,71743.0,71730.0,0.041817]
[1773607026501,0.01708862,71742.0,71730.0,0.041817]
[1773607027199,0.30688,71773.0,71732.0,0.08755172]
[1773607027408,0.041792,71773.0,71757.0,0.12935172]
[1773607027703,0.0014,71769.0,71757.0,0.0418]
[1773607027899,0.00874,71767.0,71750.0,0.09058689]
[1773607028107,0.00874,71767.0,71751.0,0.00290242]
[1773607028294,0.00734,71767.0,71751.0,0.00290242]
[1773607028598,0.041792,71773.0,71751.0,0.00290242]
[1773607028804,0.0014,71768.0,71755.0,0.041802]
[1773607029094,0.041793,71771.0,71755.0,0.041802]
[1773607029295,0.0014,71770.0,71755.0,0.041802]
[1773607029504,0.0014,71769.0,71755.0,0.041802]
[1773607029694,0.0014,71768.0,71755.0,0.041802]
[1773607030399,0.041793,71771.0,71755.0,0.041802]
[1773607030698,0.01708862,71774.0,71753.0,0.041803]
[1773607030892,0.01744278,71772.0,71753.0,0.041803]
[1773607031093,0.0188568,71771.0,71753.0,0.041803]
[1773607031293,0.0188568,71770.0,71753.0,0.041803]
[1773607031493,0.0014,71769.0,71753.0,0.041803]
[1773607031898,0.0014,71769.0,71756.0,0.041801]
[1773607032201,0.041792,71772.0,71757.0,0.041801]
[1773607032503,0.0014,71771.0,71758.0,0.0418]
[1773607033103,0.05921888,71774.0,71755.0,0.0014]
[1773607033308,0.0014,71773.0,71755.0,0.0014]
[1773607033604,0.01742788,71778.0,71755.0,0.0014]
[1773607034102,0.01742788,71780.0,71755.0,0.0014]
[1773607034304,0.04179,71776.0,71763.0,0.041797]
[1773607034497,0.0014,71775.0,71763.0,0.041797]
[1773607035296,0.0014,71775.0,71763.0,0.041837]
[1773607035995,0.0014,71775.0,71764.0,0.041797]
[1773607040005,0.01740347,71774.0,71763.0,4e-05]
[1773607040206,0.01740347,71774.0,71763.0,0.041837]
[1773607040907,0.043191,71775.0,71763.0,0.041837]
[1773607041207,0.0014,71775.0,71764.0,0.041797]
[1773607043009,0.01717324,71762.0,71744.0,0.0014]
[1773607043206,0.0014,71762.0,71754.0,0.041803]
[1773607043503,0.0014,71762.0,71740.0,0.16498892]
[1773607043504,0.01713476,71761.0,71740.0,0.16498892]
[1773607043706,0.01713476,71757.0,71746.0,0.041807]
[1773607044206,0.01713476,71757.0,71736.0,0.16498892]
[1773607044207,0.01711891,71755.0,71736.0,0.16498892]
[1773607044509,0.05892091,71755.0,71742.0,0.041809]
[1773607044710,0.0014,71754.0,71740.0,0.041811]
[1773607044906,0.05892291,71752.0,71740.0,0.041811]
[1773607045109,0.01711891,71752.0,71741.0,0.04181]
[1773607046112,0.01664468,71751.0,71729.0,0.16498892]
[1773607046308,0.043203,71754.0,71731.0,0.00091416]
[1773607046503,0.0014,71754.0,71742.0,0.041809]
[1773607048517,0.0014,71754.0,71734.0,0.00231416]
[1773607048518,0.00733,71776.0,71743.0,0.00064131]
[1773607048706,0.00733,71776.0,71750.0,0.08740879]
[1773607048902,0.00733,71776.0,71751.0,0.0014]
[1773607049117,0.0014,71775.0,71752.0,0.00092238]
[1773607049712,0.0014,71775.0,71763.0,0.041797]
[1773607050520,0.0014,71775.0,71764.0,0.041796]
[1773607050816,0.0014,71775.0,71763.0,0.041797]
[1773607051220,0.0014,71775.0,71765.0,0.041796]
[1773607051810,0.001,71776.0,71765.0,0.041796]
[1773607052019,0.0014,71774.0,71765.0,0.041796]
[1773607052218,0.01680903,71773.0,71754.0,0.0014]
[1773607052517,0.01680903,71773.0,71762.0,0.041798]
[1773607052722,0.01680903,71773.0,71754.0,0.0014]
[1773607052723,0.0014,71774.0,71763.0,0.041797]
[1773607053215,0.0014,71773.0,71763.0,0.041797]
[1773607053515,0.0014,71772.0,71763.0,0.041797]
[1773607054512,0.01824885,71772.0,71747.0,0.0009347]
[1773607054912,0.01824885,71772.0,71760.0,0.041799]
[1773607055107,0.01824885,71772.0,71761.0,0.041798]
[1773607055309,0.00069656,71781.0,71746.0,0.0014]
[1773607055515,0.00069656,71781.0,71771.0,0.041792]
[1773607056408,0.01826787,71788.0,71765.0,0.00080292]
[1773607056615,0.00069608,71831.0,71767.0,0.24798258]
[1773607056616,0.1,71818.0,71767.0,0.24798258]
[1773607056836,0.01768302,71831.0,71774.0,0.278607]
[1773607057126,0.01716515,71824.0,71786.0,0.31009064]
[1773607057321,0.00733,71805.0,71793.0,0.04178]
[1773607057518,0.00733,71805.0,71796.0,0.041778]
[1773607057924,0.00733,71805.0,71780.0,0.08740879]
[1773607057925,0.00733,71805.0,71791.0,0.041781]
[1773607058230,0.00733,71805.0,71794.0,0.041779]
[1773607058421,0.0014,71804.0,71785.0,0.041784]
[1773607058621,0.01875669,71804.0,71776.0,0.04179]
[1773607058824,0.01875669,71804.0,71786.0,0.041784]
[1773607059119,0.0014,71803.0,71786.0,0.041784]
[1773607059324,0.0014,71802.0,71787.0,0.00192403]
[1773607059517,0.00733,71805.0,71791.0,0.00178288]
[1773607059725,0.00873,71805.0,71793.0,0.00178288]
[1773607060024,0.0014,71804.0,71793.0,0.00178288]
[1773607060321,0.01805789,71813.0,71793.0,0.00178288]
[1773607060529,0.0014,71812.0,71793.0,0.00178288]
[1773607060742,0.0177212,71827.0,71803.0,0.00332552]
[1773607061034,0.0014,71826.0,71803.0,0.00332552]
[1773607061221,0.00733,71828.0,71808.0,0.00324876]
[1773607061412,0.0014,71827.0,71809.0,0.04177]
[1773607061817,0.0014,71827.0,71809.0,0.04494819]
[1773607062024,0.00733,71828.0,71809.0,0.04494819]
[1773607062221,0.00733,71828.0,71812.0,0.00268593]
[1773607062427,0.00733,71828.0,71813.0,0.041768]
[1773607062731,0.00069608,71831.0,71817.0,0.00254563]
[1773607062925,0.01783501,71830.0,71813.0,0.0014]
[1773607063122,0.017968,71828.0,71812.0,4.002e-05]
[1773607063518,0.0014,71829.0,71812.0,4.002e-05]
[1773607063719,0.019368,71829.0,71812.0,4.002e-05]
[1773607064126,0.017968,71829.0,71812.0,4.002e-05]
[1773607064423,0.00069608,71831.0,71813.0,0.00272494]
[1773607064634,0.00069608,71831.0,71812.0,4.002e-05]
[1773607064937,0.01921642,71830.0,71812.0,0.04180902]
[1773607066235,0.0014,71830.0,71814.0,0.041767]
[1773607066436,0.00674,71852.0,71816.0,0.00463536]
[1773607066636,0.01727105,71848.0,71822.0,0.01644112]
[1773607066836,0.01587105,71833.0,71813.0,0.041768]
[1773607067044,0.01587105,71831.0,71812.0,4.002e-05]
[1773607067235,0.0014,71830.0,71812.0,4.002e-05]
[1773607067432,0.0014,71829.0,71812.0,4.002e-05]
[1773607068051,0.0014,71829.0,71791.0,0.0014]
[1773607068052,0.01587105,71828.0,71791.0,0.0014]
[1773607068340,0.01587105,71812.0,71792.0,0.0014]
[1773607068547,0.01587105,71810.0,71794.0,0.041779]
[1773607069042,0.0014,71811.0,71798.0,0.041777]
[1773607069431,0.0014,71811.0,71799.0,0.041776]
[1773607069741,0.01587105,71817.0,71793.0,0.01644112]
[1773607069938,0.01587105,71827.0,71800.0,0.01644112]
[1773607070133,0.05763205,71826.0,71808.0,0.041771]
[1773607070338,0.01587105,71825.0,71808.0,0.03968115]
[1773607071244,0.0014,71824.0,71808.0,0.03968115]
[1773607071439,0.01587105,71823.0,71804.0,0.041773]
[1773607071646,0.01587105,71821.0,71806.0,0.041772]
[1773607072034,0.01587105,71821.0,71803.0,0.043174]
[1773607072035,0.0170545,71820.0,71803.0,0.043174]
[1773607072241,0.0170545,71820.0,71797.0,0.01644112]
[1773607072242,0.001,71825.0,71802.0,0.01756087]
[1773607072448,0.0014,71824.0,71798.0,0.01756087]
[1773607072645,0.001,71825.0,71801.0,0.01756087]
[1773607072847,0.0014,71823.0,71801.0,0.01756087]
[1773607073548,0.0014,71823.0,71812.0,0.041769]
[1773607073850,0.001,71825.0,71812.0,0.041769]
[1773607074048,0.0014,71822.0,71812.0,0.041769]
[1773607074248,0.01730047,71843.0,71817.0,0.01812695]
[1773607074445,0.041753,71840.0,71820.0,0.01812695]
[1773607074640,0.01730047,71840.0,71820.0,0.01812695]
[1773607074848,0.0014,71839.0,71827.0,0.04176]
[1773607075043,0.01730047,71840.0,71827.0,0.04176]
[1773607075245,0.0014,71838.0,71827.0,0.04176]
[1773607075548,0.0014,71837.0,71829.0,0.041759]
[1773607075844,0.0014,71836.0,71826.0,0.04176]
[1773607076049,0.01730047,71840.0,71826.0,0.04176]
[1773607076245,0.01870047,71839.0,71827.0,0.04176]
[1773607076448,0.01730047,71837.0,71806.0,0.01812695]
[1773607076649,0.01730047,71837.0,71809.0,0.01812695]
[1773607076849,0.01730047,71837.0,71811.0,0.01812695]
[1773607077039,0.01730047,71837.0,71800.0,0.08740879]
[1773607077040,0.01730047,71837.0,71813.0,0.01812695]
[1773607077241,0.00674,71849.0,71821.0,0.01812695]
[1773607077457,0.00674,71849.0,71833.0,0.01812695]
[1773607077640,0.0014,71848.0,71833.0,0.01812695]
[1773607077840,0.0014,71847.0,71837.0,0.041754]
[1773607078250,0.0014,71847.0,71838.0,0.041753]
[1773607078445,0.0014,71847.0,71816.0,0.01812695]
[1773607078446,0.01730047,71840.0,71816.0,0.01812695]
[1773607078651,0.01730047,71839.0,71811.0,0.01812695]
[1773607078957,0.02707862,71855.0,71825.0,0.041761]
[1773607078958,0.01870047,71838.0,71825.0,0.041761]
[1773607079251,0.01870047,71846.0,71829.0,0.041759]
[1773607080252,0.01730047,71842.0,71827.0,0.04176]
[1773607080453,0.01730047,71842.0,71828.0,0.041759]
[1773607080650,0.01730047,71833.0,71812.0,0.01952695]
[1773607080847,0.0014,71832.0,71813.0,0.01952695]
[1773607081054,0.0014,71832.0,71819.0,0.041765]
[1773607081449,0.01870047,71832.0,71819.0,0.041765]
[1773607082059,0.01870047,71832.0,71819.0,0.04180501]
[1773607082258,0.01730047,71829.0,71819.0,4.001e-05]
[1773607082455,0.01730047,71829.0,71815.0,0.041767]
[1773607082860,0.01730047,71829.0,71806.0,0.01952695]
[1773607083161,0.01730047,71829.0,71807.0,0.0014]
[1773607083347,0.01730047,71829.0,71807.0,0.01952695]
[1773607083549,0.01730047,71828.0,71807.0,0.01952695]
[1773607084160,0.01730047,71822.0,71802.0,0.01812695]
[1773607084355,0.0014,71821.0,71802.0,0.01812695]
[1773607084549,0.01870047,71821.0,71801.0,0.0014]
[1773607084749,0.0014,71821.0,71802.0,0.01812695]
[1773607084949,0.01870047,71821.0,71808.0,0.041771]
[1773607085161,0.01730047,71820.0,71806.0,0.041772]
[1773607085460,0.01730047,71818.0,71796.0,0.18328803]
[1773607085757,0.01730047,71818.0,71805.0,0.041773]
[1773607086154,0.05906647,71818.0,71805.0,0.041773]
[1773607086345,0.05906647,71818.0,71802.0,0.041775]
[1773607086346,0.041767,71815.0,71802.0,0.041775]
[1773607086550,0.0014,71814.0,71804.0,0.041773]
[1773607086759,0.0014,71814.0,71801.0,0.041775]
[1773607086955,0.0014,71814.0,71797.0,0.16656108]
[1773607087152,0.01730047,71815.0,71797.0,0.16656108]
[1773607087353,0.0014,71814.0,71797.0,0.0014]
[1773607087558,0.01730047,71810.0,71792.0,0.16516108]
[1773607087749,0.01730047,71810.0,71799.0,0.041776]
[1773607087955,0.05907047,71810.0,71790.0,0.16516108]
[1773607088158,0.01730047,71810.0,71791.0,0.0014]
[1773607088351,0.01730047,71810.0,71791.0,0.01952695]
[1773607088857,0.0014,71809.0,71805.0,0.041772]
[1773607089158,0.0014,71809.0,71802.0,0.041774]